[Event "*** Titled Tuesday Blitz"]
[Site "Chess.com"]
[Date "2019.12.03"]
[Round "1"]
[White "wnstop"]
[Black "nitpicker"]
[Result "1-0"]
[WhiteElo "2665"]
[BlackElo "2319"]
[TimeControl "180+2"]
[EndTime "13:08:47 PST"]
[Termination "wnstop won on time"]

1. e4 {[%clk 0:03:01.9]} 1... e6 {[%clk 0:02:57.6]} 2. d4 {[%clk 0:03:02]} 2...
d5 {[%clk 0:02:57.7]} 3. Nd2 {[%clk 0:03:03.4]} 3... dxe4 {[%clk 0:02:57.7]} 4.
Nxe4 {[%clk 0:03:05.3]} 4... Bd7 {[%clk 0:02:58.8]} 5. Nf3 {[%clk 0:03:05.5]}
5... Bc6 {[%clk 0:02:52.4]} 6. Bd3 {[%clk 0:03:06.9]} 6... Nd7 {[%clk
0:02:53.3]} 7. O-O {[%clk 0:03:06.9]} 7... Ngf6 {[%clk 0:02:54.1]} 8. Ned2
{[%clk 0:03:06.8]} 8... Be7 {[%clk 0:02:50]} 9. Re1 {[%clk 0:03:07.8]} 9... O-O
{[%clk 0:02:49.7]} 10. Nc4 {[%clk 0:03:08]} 10... Bxf3 {[%clk 0:02:50.4]} 11.
Qxf3 {[%clk 0:03:09.9]} 11... c6 {[%clk 0:02:51.3]} 12. c3 {[%clk 0:03:09.6]}
12... a5 {[%clk 0:02:45.8]} 13. a4 {[%clk 0:03:09]} 13... Nb6 {[%clk 0:02:41.9]}
14. Ne5 {[%clk 0:03:09.5]} 14... Nbd5 {[%clk 0:02:42.7]} 15. Bg5 {[%clk
0:03:08.3]} 15... g6 {[%clk 0:02:29.2]} 16. Rad1 {[%clk 0:03:07.2]} 16... Kg7
{[%clk 0:02:13.9]} 17. Qh3 {[%clk 0:03:06]} 17... Ng8 {[%clk 0:02:10.5]} 18. Bc1
{[%clk 0:03:05.7]} 18... Bg5 {[%clk 0:02:02.3]} 19. g3 {[%clk 0:02:56.5]} 19...
Bxc1 {[%clk 0:02:00.6]} 20. Rxc1 {[%clk 0:02:58.4]} 20... Nb6 {[%clk 0:01:46.2]}
21. Qg4 {[%clk 0:02:52]} 21... Nf6 {[%clk 0:01:29.8]} 22. Qd1 {[%clk 0:02:52.2]}
22... Qd5 {[%clk 0:01:22.5]} 23. Bf1 {[%clk 0:02:51]} 23... Rad8 {[%clk
0:01:14.7]} 24. Bg2 {[%clk 0:02:48.7]} 24... Qd6 {[%clk 0:01:00.3]} 25. Qb3
{[%clk 0:02:49.9]} 25... Qc7 {[%clk 0:00:57.6]} 26. Nd3 {[%clk 0:02:50.7]} 26...
Nbd5 {[%clk 0:00:47.3]} 27. Nc5 {[%clk 0:02:43.5]} 27... b6 {[%clk 0:00:46.2]}
28. Nd3 {[%clk 0:02:42.5]} 28... c5 {[%clk 0:00:42.6]} 29. dxc5 {[%clk
0:02:42.2]} 29... bxc5 {[%clk 0:00:43.8]} 30. Qc4 {[%clk 0:02:39]} 30... Rc8
{[%clk 0:00:43.2]} 31. Ne5 {[%clk 0:02:35.7]} 31... Qb6 {[%clk 0:00:41.2]} 32.
Qb5 {[%clk 0:00:55.2]} 32... Rb8 {[%clk 0:00:41.2]} 33. Qxb6 {[%clk 0:00:55.1]}
33... Rxb6 {[%clk 0:00:41]} 34. Nc4 {[%clk 0:00:56.5]} 34... Ra6 {[%clk
0:00:29.6]} 35. Bf1 {[%clk 0:00:56.3]} 35... Ra7 {[%clk 0:00:29.4]} 36. Nd6
{[%clk 0:00:56.1]} 36... Rb8 {[%clk 0:00:24.8]} 37. Bb5 {[%clk 0:00:55.3]} 37...
Rc7 {[%clk 0:00:20.8]} 38. Nc4 {[%clk 0:00:54.6]} 38... Ra8 {[%clk 0:00:20.3]}
39. f4 {[%clk 0:00:55.1]} 39... Kf8 {[%clk 0:00:19.1]} 40. Kg2 {[%clk
0:00:53.1]} 40... Rca7 {[%clk 0:00:18.3]} 41. Kf3 {[%clk 0:00:53.3]} 41... Rb8
{[%clk 0:00:17.6]} 42. Ne5 {[%clk 0:00:54.3]} 42... Rb6 {[%clk 0:00:12.9]} 43.
Rcd1 {[%clk 0:00:53]} 43... Nc7 {[%clk 0:00:09.1]} 44. Nc4 {[%clk 0:00:45.4]}
44... Rb8 {[%clk 0:00:07.6]} 45. Nd6 {[%clk 0:00:46.8]} 45... Nxb5 {[%clk
0:00:06.1]} 46. Nxb5 {[%clk 0:00:45.3]} 46... Nd5 {[%clk 0:00:05.1]} 47. Nxa7
{[%clk 0:00:45.4]} 1-0

[Event "*** Titled Tuesday Blitz"]
[Site "Chess.com"]
[Date "2019.12.03"]
[Round "1"]
[White "Chesswizard_2007"]
[Black "Sankalp_Gupta2003"]
[Result "1/2-1/2"]
[WhiteElo "2423"]
[BlackElo "2776"]
[TimeControl "180+2"]
[EndTime "13:08:48 PST"]
[Termination "Game drawn by agreement"]

1. Nf3 {[%clk 0:03:01.9]} 1... Nf6 {[%clk 0:03:00.4]} 2. c4 {[%clk 0:03:03]}
2... g6 {[%clk 0:03:01.1]} 3. Nc3 {[%clk 0:03:03.9]} 3... d5 {[%clk 0:03:02.4]}
4. cxd5 {[%clk 0:03:04.6]} 4... Nxd5 {[%clk 0:03:04.3]} 5. e4 {[%clk 0:03:05.5]}
5... Nxc3 {[%clk 0:03:05.5]} 6. dxc3 {[%clk 0:03:07.4]} 6... Qxd1+ {[%clk
0:03:06.1]} 7. Kxd1 {[%clk 0:03:09.3]} 7... f6 {[%clk 0:03:07.4]} 8. Kc2 {[%clk
0:03:09.8]} 8... e5 {[%clk 0:03:08.5]} 9. Be3 {[%clk 0:03:10.6]} 9... Be6 {[%clk
0:03:07.9]} 10. Nd2 {[%clk 0:03:07.9]} 10... Nd7 {[%clk 0:03:08.8]} 11. Bc4
{[%clk 0:03:06.1]} 11... Kf7 {[%clk 0:02:20]} 12. Bxe6+ {[%clk 0:02:59.8]} 12...
Kxe6 {[%clk 0:02:21.9]} 13. Rad1 {[%clk 0:02:58.5]} 13... Bc5 {[%clk 0:02:17.2]}
14. Nc4 {[%clk 0:02:47]} 14... Bxe3 {[%clk 0:02:09]} 15. Nxe3 {[%clk 0:02:48.9]}
15... Nb6 {[%clk 0:02:05.2]} 16. b3 {[%clk 0:02:47.1]} 16... Rhd8 {[%clk
0:02:05.4]} 17. a4 {[%clk 0:02:47.3]} 17... c6 {[%clk 0:01:58.5]} 18. g3 {[%clk
0:02:41.9]} 18... Nd7 {[%clk 0:01:58.6]} 19. b4 {[%clk 0:02:39.5]} 19... a5
{[%clk 0:01:58]} 20. Kb3 {[%clk 0:02:33.5]} 20... b5 {[%clk 0:01:51.3]} 21. axb5
{[%clk 0:02:30.9]} 21... a4+ {[%clk 0:01:51.1]} 22. Ka3 {[%clk 0:02:30.8]} 22...
cxb5 {[%clk 0:01:50.5]} 23. c4 {[%clk 0:02:29.4]} 23... bxc4 {[%clk 0:01:36.3]}
24. Nxc4 {[%clk 0:02:31.3]} 24... Rdc8 {[%clk 0:01:37.1]} 25. Rd6+ {[%clk
0:02:27.7]} 25... Ke7 {[%clk 0:01:37.1]} 26. Rxd7+ {[%clk 0:02:29.2]} 26... Kxd7
{[%clk 0:01:35.5]} 27. Nb6+ {[%clk 0:02:30.7]} 27... Kc7 {[%clk 0:01:23.8]} 28.
Nxc8 {[%clk 0:02:28.3]} 28... Kxc8 {[%clk 0:01:25.7]} 29. Rc1+ {[%clk
0:02:23.1]} 29... Kb7 {[%clk 0:01:25.3]} 30. Rc5 {[%clk 0:02:24.6]} 30... Kb6
{[%clk 0:01:25.5]} 31. Rd5 {[%clk 0:02:23.6]} 31... Kc6 {[%clk 0:01:25.5]} 32.
Rc5+ {[%clk 0:02:18.3]} 32... Kb6 {[%clk 0:01:26.3]} 33. Rd5 {[%clk 0:02:18.8]}
33... Kc6 {[%clk 0:01:16.5]} 34. g4 {[%clk 0:02:18.9]} 34... h6 {[%clk
0:00:57.9]} 35. Rc5+ {[%clk 0:02:11]} 35... Kb6 {[%clk 0:00:58.8]} 36. Rd5
{[%clk 0:02:03.9]} 36... Kc6 {[%clk 0:01:00.1]} 37. Rd3 {[%clk 0:02:04.6]} 37...
Kb5 {[%clk 0:00:57.2]} 38. Rc3 {[%clk 0:01:54]} 38... Rd8 {[%clk 0:00:42.5]} 39.
Rc5+ {[%clk 0:01:53.1]} 39... Kb6 {[%clk 0:00:43]} 40. Kxa4 {[%clk 0:01:45.1]}
40... Rd2 {[%clk 0:00:43.3]} 41. Rb5+ {[%clk 0:01:46.2]} 41... Kc6 {[%clk
0:00:37.1]} 42. Rc5+ {[%clk 0:01:47.1]} 42... Kb6 {[%clk 0:00:36.3]} 43. Rb5+
{[%clk 0:01:45.8]} 43... Kc6 {[%clk 0:00:36.2]} 44. Rc5+ {[%clk 0:01:46.1]}
44... Kb7 {[%clk 0:00:30.9]} 45. h4 {[%clk 0:01:27.7]} 45... Rxf2 {[%clk
0:00:30.1]} 46. g5 {[%clk 0:01:28.3]} 46... hxg5 {[%clk 0:00:19.1]} 47. hxg5
{[%clk 0:01:30.2]} 47... fxg5 {[%clk 0:00:20.8]} 48. Rxe5 {[%clk 0:01:31.2]}
48... g4 {[%clk 0:00:21.9]} 49. Rg5 {[%clk 0:01:31.7]} 49... Rf4 {[%clk
0:00:23.1]} 50. e5 {[%clk 0:01:31.6]} 50... Rf5 {[%clk 0:00:21]} 51. Rxg4 {[%clk
0:01:06.1]} 51... Rxe5 {[%clk 0:00:20.8]} 52. Rxg6 {[%clk 0:01:07.2]} 52... Re7
{[%clk 0:00:21.8]} 53. Ka5 {[%clk 0:01:07.4]} 53... Rc7 {[%clk 0:00:22.1]} 54.
Rb6+ {[%clk 0:01:05.6]} 54... Ka7 {[%clk 0:00:23.1]} 55. b5 {[%clk 0:01:05.2]}
55... Rh7 {[%clk 0:00:22.9]} 56. Rg6 {[%clk 0:01:05.3]} 56... Kb7 {[%clk
0:00:23.3]} 57. Rf6 {[%clk 0:01:03]} 1/2-1/2

[Event "*** Titled Tuesday Blitz"]
[Site "Chess.com"]
[Date "2019.12.03"]
[Round "1"]
[White "Alexander_Moskalenko"]
[Black "Alopekos"]
[Result "0-1"]
[WhiteElo "2839"]
[BlackElo "2472"]
[TimeControl "180+2"]
[EndTime "13:08:51 PST"]
[Termination "Alopekos won by resignation"]

1. e4 {[%clk 0:03:01.7]} 1... e5 {[%clk 0:03:00.3]} 2. Bc4 {[%clk 0:02:59.5]}
2... Nc6 {[%clk 0:03:00]} 3. d3 {[%clk 0:03:00.3]} 3... Nf6 {[%clk 0:02:59.3]}
4. Nc3 {[%clk 0:03:01.5]} 4... Na5 {[%clk 0:02:51]} 5. a4 {[%clk 0:03:01.8]}
5... Nxc4 {[%clk 0:02:50.9]} 6. dxc4 {[%clk 0:03:03.7]} 6... Bc5 {[%clk
0:02:47.4]} 7. Nge2 {[%clk 0:03:04.1]} 7... d6 {[%clk 0:02:47.6]} 8. O-O {[%clk
0:03:04.5]} 8... Be6 {[%clk 0:02:44.7]} 9. b3 {[%clk 0:03:04.9]} 9... h6 {[%clk
0:02:31.3]} 10. Qd3 {[%clk 0:03:06.4]} 10... O-O {[%clk 0:02:09.1]} 11. Qg3
{[%clk 0:03:07.1]} 11... Nh5 {[%clk 0:02:06.1]} 12. Qf3 {[%clk 0:03:07.3]} 12...
Qh4 {[%clk 0:01:55.7]} 13. Ng3 {[%clk 0:03:03.7]} 13... Nxg3 {[%clk 0:01:21.9]}
14. hxg3 {[%clk 0:03:03.6]} 14... Qg4 {[%clk 0:01:11.5]} 15. Qxg4 {[%clk
0:03:02.8]} 15... Bxg4 {[%clk 0:01:13.4]} 16. Nd5 {[%clk 0:03:04]} 16... c6
{[%clk 0:01:14.9]} 17. Ne3 {[%clk 0:03:03.1]} 17... Be6 {[%clk 0:01:09.7]} 18.
Rd1 {[%clk 0:03:04.2]} 18... Rfd8 {[%clk 0:01:07.7]} 19. a5 {[%clk 0:02:55.9]}
19... a6 {[%clk 0:00:57.7]} 20. Rd3 {[%clk 0:02:54.2]} 20... Rd7 {[%clk
0:00:47.5]} 21. g4 {[%clk 0:02:55.4]} 21... Rad8 {[%clk 0:00:47.1]} 22. Kf1
{[%clk 0:02:46.4]} 22... Bxe3 {[%clk 0:00:47]} 23. Bxe3 {[%clk 0:02:48.3]} 23...
Bxg4 {[%clk 0:00:48.5]} 24. f3 {[%clk 0:02:49.9]} 24... Be6 {[%clk 0:00:49]} 25.
Bb6 {[%clk 0:02:50.9]} 25... Rc8 {[%clk 0:00:50.3]} 26. Rad1 {[%clk 0:02:52.5]}
26... d5 {[%clk 0:00:48.4]} 27. c3 {[%clk 0:02:37.5]} 27... f6 {[%clk
0:00:25.9]} 28. cxd5 {[%clk 0:02:37.2]} 28... cxd5 {[%clk 0:00:27.8]} 29. exd5
{[%clk 0:02:39.1]} 29... Bf5 {[%clk 0:00:29.2]} 30. Re3 {[%clk 0:02:40.5]} 30...
Bc2 {[%clk 0:00:30]} 31. Rd2 {[%clk 0:02:35.3]} 31... Bxb3 {[%clk 0:00:31.3]}
32. d6 {[%clk 0:02:37.2]} 32... Rc6 {[%clk 0:00:29.3]} 33. Bc7 {[%clk
0:02:37.6]} 33... Kf7 {[%clk 0:00:22.1]} 34. Rb2 {[%clk 0:02:37.5]} 34... Bc4+
{[%clk 0:00:23.3]} 35. Kf2 {[%clk 0:02:38.6]} 35... Bb5 {[%clk 0:00:24.7]} 36.
Rb4 {[%clk 0:02:33.1]} 36... Rc4 {[%clk 0:00:22.6]} 37. Rxc4 {[%clk 0:02:27.3]}
37... Bxc4 {[%clk 0:00:24.5]} 38. f4 {[%clk 0:02:28.7]} 38... exf4 {[%clk
0:00:21.5]} 39. Re4 {[%clk 0:02:30.2]} 39... Bd5 {[%clk 0:00:21.1]} 40. Rxf4
{[%clk 0:02:32.1]} 40... g5 {[%clk 0:00:18.5]} 41. Rd4 {[%clk 0:02:32.3]} 41...
Bc6 {[%clk 0:00:19.8]} 42. g3 {[%clk 0:02:34.2]} 42... Ke6 {[%clk 0:00:18.9]}
43. Ke3 {[%clk 0:02:35.8]} 43... h5 {[%clk 0:00:19.2]} 44. Rc4 {[%clk
0:02:37.1]} 44... Kf5 {[%clk 0:00:18.2]} 45. Kd4 {[%clk 0:02:13.9]} 45... h4
{[%clk 0:00:16.5]} 46. gxh4 {[%clk 0:02:12.4]} 46... gxh4 {[%clk 0:00:18.4]} 47.
Ke3 {[%clk 0:02:11]} 47... Rh7 {[%clk 0:00:18]} 48. Rf4+ {[%clk 0:02:09.1]}
48... Ke6 {[%clk 0:00:15]} 49. Rf2 {[%clk 0:02:01.5]} 49... h3 {[%clk
0:00:14.5]} 50. Rh2 {[%clk 0:02:03.1]} 50... Bg2 {[%clk 0:00:16]} 51. Kd4 {[%clk
0:02:03.1]} 51... f5 {[%clk 0:00:11.7]} 52. Ke3 {[%clk 0:02:03.7]} 52... Rh4
{[%clk 0:00:09.4]} 53. Kd3 {[%clk 0:01:59.1]} 53... f4 {[%clk 0:00:07.2]} 54.
Bb8 {[%clk 0:01:57.1]} 54... f3 {[%clk 0:00:06.1]} 55. Ke3 {[%clk 0:01:58.7]}
55... Ra4 {[%clk 0:00:04.3]} 56. Kf2 {[%clk 0:02:00.6]} 56... Rxa5 {[%clk
0:00:04.9]} 57. c4 {[%clk 0:02:02.5]} 57... Rc5 {[%clk 0:00:04.8]} 58. d7 {[%clk
0:02:00.5]} 58... Kxd7 {[%clk 0:00:05.6]} 59. Bf4 {[%clk 0:02:02.2]} 59... Rxc4
{[%clk 0:00:06.8]} 60. Be3 {[%clk 0:02:04.1]} 60... a5 {[%clk 0:00:06.3]} 61.
Kg3 {[%clk 0:02:03.7]} 61... a4 {[%clk 0:00:07.6]} 62. Bg5 {[%clk 0:02:05.4]}
62... b5 {[%clk 0:00:06.7]} 63. Bf6 {[%clk 0:02:07.3]} 63... b4 {[%clk
0:00:07.9]} 64. Bg7 {[%clk 0:02:09.2]} 64... a3 {[%clk 0:00:08.7]} 65. Rxh3
{[%clk 0:02:11.1]} 65... Bxh3 {[%clk 0:00:09.3]} 66. Kxh3 {[%clk 0:02:13]} 66...
b3 {[%clk 0:00:10.4]} 67. Kg3 {[%clk 0:02:14.4]} 67... b2 {[%clk 0:00:11.9]} 68.
Kxf3 {[%clk 0:02:16.3]} 68... b1=Q {[%clk 0:00:12.9]} 69. Be5 {[%clk 0:02:16.3]}
69... Qd3+ {[%clk 0:00:14]} 70. Kg2 {[%clk 0:02:15]} 70... Rc2+ {[%clk
0:00:15.2]} 71. Kg1 {[%clk 0:02:16.9]} 0-1

[Event "*** Titled Tuesday Blitz"]
[Site "Chess.com"]
[Date "2019.12.03"]
[Round "1"]
[White "Donseng"]
[Black "allvim"]
[Result "1/2-1/2"]
[WhiteElo "2562"]
[BlackElo "2204"]
[TimeControl "180+2"]
[EndTime "13:09:23 PST"]
[Termination "Game drawn by agreement"]

1. Nf3 {[%clk 0:03:01.9]} 1... Nf6 {[%clk 0:02:58.3]} 2. c4 {[%clk 0:03:02.8]}
2... c5 {[%clk 0:02:57.2]} 3. g3 {[%clk 0:02:59.8]} 3... Nc6 {[%clk 0:02:56.8]}
4. Bg2 {[%clk 0:02:58.7]} 4... g6 {[%clk 0:02:58.1]} 5. O-O {[%clk 0:02:59.2]}
5... Bg7 {[%clk 0:02:58]} 6. Nc3 {[%clk 0:03:00.5]} 6... O-O {[%clk 0:02:57.8]}
7. d4 {[%clk 0:02:58.6]} 7... cxd4 {[%clk 0:02:55.5]} 8. Nxd4 {[%clk 0:02:59.2]}
8... Nxd4 {[%clk 0:02:55.8]} 9. Qxd4 {[%clk 0:02:57.5]} 9... d6 {[%clk
0:02:56.8]} 10. b3 {[%clk 0:02:58]} 10... Nd7 {[%clk 0:02:55.2]} 11. Qd2 {[%clk
0:02:58.3]} 11... Rb8 {[%clk 0:02:51.1]} 12. Bb2 {[%clk 0:02:58.8]} 12... a6
{[%clk 0:02:42.9]} 13. Nd5 {[%clk 0:02:40.6]} 13... Bxb2 {[%clk 0:02:27.6]} 14.
Qxb2 {[%clk 0:02:41.2]} 14... b5 {[%clk 0:02:28.8]} 15. Rac1 {[%clk 0:02:41.3]}
15... Bb7 {[%clk 0:02:24.5]} 16. h4 {[%clk 0:02:23.9]} 16... h5 {[%clk 0:02:18]}
17. Rfd1 {[%clk 0:02:05.4]} 17... Nb6 {[%clk 0:02:08.3]} 18. Qd4 {[%clk
0:01:44.9]} 18... Nxd5 {[%clk 0:01:53.5]} 19. cxd5 {[%clk 0:01:43.5]} 19... Qa5
{[%clk 0:01:44.3]} 20. Qd2 {[%clk 0:01:09.9]} 20... Qxd2 {[%clk 0:01:36.6]} 21.
Rxd2 {[%clk 0:01:10.6]} 21... Rfc8 {[%clk 0:01:37.7]} 22. Rdc2 {[%clk
0:01:11.3]} 22... Rxc2 {[%clk 0:01:38]} 23. Rxc2 {[%clk 0:01:13.2]} 23... Rc8
{[%clk 0:01:39.1]} 24. Rxc8+ {[%clk 0:01:12.8]} 24... Bxc8 {[%clk 0:01:39.6]}
25. b4 {[%clk 0:01:14.3]} 25... Kg7 {[%clk 0:01:32.8]} 26. f4 {[%clk 0:01:06]}
26... Kf6 {[%clk 0:01:17.4]} 27. Kf2 {[%clk 0:01:06.4]} 27... Bg4 {[%clk
0:01:16.8]} 28. Ke3 {[%clk 0:01:04.8]} 28... Bf5 {[%clk 0:01:07.3]} 29. Kd4
{[%clk 0:01:04.2]} 29... Bd7 {[%clk 0:01:00.8]} 30. e4 {[%clk 0:01:03.4]} 30...
Bg4 {[%clk 0:00:55.1]} 31. e5+ {[%clk 0:01:02.2]} 31... Kg7 {[%clk 0:00:55.4]}
32. Be4 {[%clk 0:00:49.2]} 32... Kf8 {[%clk 0:00:49.3]} 33. Bd3 {[%clk
0:00:47.5]} 33... Ke8 {[%clk 0:00:45.6]} 34. e6 {[%clk 0:00:42.9]} 34... Kf8
{[%clk 0:00:38]} 35. exf7 {[%clk 0:00:41.9]} 35... Kxf7 {[%clk 0:00:39.9]} 36.
a4 {[%clk 0:00:43.1]} 36... Bd7 {[%clk 0:00:30.6]} 37. a5 {[%clk 0:00:43.3]}
37... Bg4 {[%clk 0:00:29.6]} 38. Ke3 {[%clk 0:00:42]} 38... Kf6 {[%clk
0:00:29.3]} 39. Be4 {[%clk 0:00:42.7]} 39... Bd7 {[%clk 0:00:29.3]} 40. Kf3
{[%clk 0:00:42.6]} 40... Bh3 {[%clk 0:00:28.7]} 41. Kf2 {[%clk 0:00:42.8]} 41...
Bg4 {[%clk 0:00:28.9]} 42. Ke3 {[%clk 0:00:42.5]} 42... Bd7 {[%clk 0:00:28.8]}
43. Bf3 {[%clk 0:00:43.2]} 43... Bf5 {[%clk 0:00:28.4]} 44. Kf2 {[%clk 0:00:41]}
44... Bd7 {[%clk 0:00:28.3]} 45. Be2 {[%clk 0:00:41.5]} 45... Bf5 {[%clk
0:00:28.2]} 46. Ke3 {[%clk 0:00:42]} 46... Bd7 {[%clk 0:00:29]} 47. Bd3 {[%clk
0:00:39.5]} 47... Bg4 {[%clk 0:00:29]} 48. Bf1 {[%clk 0:00:38.5]} 48... Bf5
{[%clk 0:00:28.8]} 49. Bg2 {[%clk 0:00:39.2]} 49... Bd7 {[%clk 0:00:28.2]} 50.
Be4 {[%clk 0:00:39.6]} 50... Bg4 {[%clk 0:00:28.9]} 51. Bh1 {[%clk 0:00:38.6]}
51... Bd7 {[%clk 0:00:29.3]} 52. Be4 {[%clk 0:00:33.2]} 52... Bg4 {[%clk
0:00:27.6]} 1/2-1/2

[Event "*** Titled Tuesday Blitz"]
[Site "Chess.com"]
[Date "2019.12.03"]
[Round "1"]
[White "SHIVACalypso"]
[Black "Ambitiousresolutions"]
[Result "0-1"]
[WhiteElo "2299"]
[BlackElo "2634"]
[TimeControl "180+2"]
[EndTime "13:09:27 PST"]
[Termination "Ambitiousresolutions won by resignation"]

1. Nf3 {[%clk 0:03:01.1]} 1... Nf6 {[%clk 0:03:00.5]} 2. c4 {[%clk 0:02:59.9]}
2... g6 {[%clk 0:03:00.6]} 3. g3 {[%clk 0:03:01.1]} 3... Bg7 {[%clk 0:03:01.2]}
4. Bg2 {[%clk 0:03:02.7]} 4... c6 {[%clk 0:03:01.9]} 5. O-O {[%clk 0:03:03.7]}
5... Kf8 {[%clk 0:03:03.1]} 6. d4 {[%clk 0:03:04.6]} 6... d5 {[%clk 0:03:02.7]}
7. cxd5 {[%clk 0:03:04]} 7... cxd5 {[%clk 0:03:04.6]} 8. Nc3 {[%clk 0:03:05.2]}
8... Nc6 {[%clk 0:03:05.2]} 9. Ne5 {[%clk 0:03:05.6]} 9... e6 {[%clk 0:03:05.2]}
10. b3 {[%clk 0:03:04.8]} 10... Nxe5 {[%clk 0:03:05.6]} 11. dxe5 {[%clk
0:03:06.7]} 11... Nd7 {[%clk 0:03:06.8]} 12. Ba3+ {[%clk 0:03:06.8]} 12... Kg8
{[%clk 0:03:06.9]} 13. f4 {[%clk 0:03:07.1]} 13... Qa5 {[%clk 0:03:05.4]} 14.
Bb2 {[%clk 0:03:03.2]} 14... h5 {[%clk 0:03:02.3]} 15. e4 {[%clk 0:02:55.9]}
15... Qb6+ {[%clk 0:02:49.4]} 16. Kh1 {[%clk 0:02:54.6]} 16... h4 {[%clk
0:02:46.9]} 17. g4 {[%clk 0:02:54.2]} 17... h3 {[%clk 0:02:46.8]} 18. Bf3 {[%clk
0:02:53.3]} 18... d4 {[%clk 0:02:41.5]} 19. Ne2 {[%clk 0:02:50.8]} 19... g5
{[%clk 0:02:38.1]} 20. Bxd4 {[%clk 0:02:43]} 20... Qa5 {[%clk 0:02:37.8]} 21.
Qe1 {[%clk 0:02:16.1]} 21... Qxe1 {[%clk 0:02:36.3]} 22. Raxe1 {[%clk 0:02:18]}
22... gxf4 {[%clk 0:02:37.6]} 23. Nxf4 {[%clk 0:02:17.2]} 23... Bxe5 {[%clk
0:02:24.2]} 24. Bxe5 {[%clk 0:02:08.6]} 24... Nxe5 {[%clk 0:02:26.1]} 25. Rd1
{[%clk 0:01:59.7]} 25... Bd7 {[%clk 0:02:24.2]} 26. Be2 {[%clk 0:01:53.7]} 26...
Bc6 {[%clk 0:02:24.3]} 27. Kg1 {[%clk 0:01:43.6]} 27... Bxe4 {[%clk 0:02:18.3]}
28. Rd4 {[%clk 0:01:28]} 28... Bc6 {[%clk 0:02:17.4]} 29. Rfd1 {[%clk
0:01:25.1]} 29... Kg7 {[%clk 0:02:07.4]} 30. Kf2 {[%clk 0:01:25.5]} 30... Kf6
{[%clk 0:02:04.9]} 31. Kg3 {[%clk 0:01:26]} 31... Rag8 {[%clk 0:02:03.4]} 32.
Nxh3 {[%clk 0:01:12.2]} 32... Ke7 {[%clk 0:02:03.8]} 33. Nf2 {[%clk 0:01:01.5]}
33... f5 {[%clk 0:01:59.4]} 34. h3 {[%clk 0:00:58.7]} 34... Ng6 {[%clk
0:01:53.2]} 35. R4d2 {[%clk 0:00:43.1]} 35... e5 {[%clk 0:01:42.2]} 36. Bc4
{[%clk 0:00:36.9]} 36... f4+ {[%clk 0:01:36.4]} 37. Kh2 {[%clk 0:00:37]} 37...
Nh4 {[%clk 0:01:34.3]} 38. Bd5 {[%clk 0:00:30.7]} 38... Rd8 {[%clk 0:01:23.8]}
39. Bxc6 {[%clk 0:00:26.1]} 39... Rxd2 {[%clk 0:01:24.5]} 40. Rxd2 {[%clk
0:00:26.6]} 40... bxc6 {[%clk 0:01:26.1]} 41. Re2 {[%clk 0:00:20.8]} 41... Ke6
{[%clk 0:01:24]} 42. Nd3 {[%clk 0:00:21.4]} 42... Ng6 {[%clk 0:01:20.8]} 43. Kg2
{[%clk 0:00:19.9]} 43... Kd5 {[%clk 0:01:19]} 44. Nf2 {[%clk 0:00:19.1]} 44...
Nh4+ {[%clk 0:01:13.2]} 45. Kf1 {[%clk 0:00:18.6]} 45... Nf3 {[%clk 0:01:13.5]}
46. Kg2 {[%clk 0:00:17.8]} 46... Nd4 {[%clk 0:01:13.2]} 47. Re4 {[%clk
0:00:17.9]} 47... a5 {[%clk 0:01:10.4]} 48. g5 {[%clk 0:00:12.9]} 48... Rh5
{[%clk 0:01:10]} 49. h4 {[%clk 0:00:11.7]} 49... Rxh4 {[%clk 0:01:09.8]} 50. Re1
{[%clk 0:00:12.8]} 50... Rh5 {[%clk 0:01:09.1]} 51. Nh3 {[%clk 0:00:13.1]} 51...
Rh4 {[%clk 0:01:08]} 52. Kh2 {[%clk 0:00:12.8]} 52... Rg4 {[%clk 0:01:08]} 53.
Rd1 {[%clk 0:00:11.6]} 53... Ke6 {[%clk 0:01:08.2]} 54. a3 {[%clk 0:00:11.7]}
54... Kf5 {[%clk 0:01:07.2]} 55. b4 {[%clk 0:00:12.4]} 55... Nf3+ {[%clk
0:01:08.1]} 56. Kh1 {[%clk 0:00:12.9]} 56... Rg3 {[%clk 0:01:10]} 57. Nf2 {[%clk
0:00:12.2]} 57... axb4 {[%clk 0:01:10.9]} 58. a4 {[%clk 0:00:13]} 58... Rxg5
{[%clk 0:01:10.1]} 59. a5 {[%clk 0:00:12.9]} 59... Rg8 {[%clk 0:01:10]} 60. Ra1
{[%clk 0:00:12.5]} 60... b3 {[%clk 0:01:10.3]} 61. a6 {[%clk 0:00:13.3]} 61...
Ra8 {[%clk 0:01:10]} 62. Nd3 {[%clk 0:00:13.4]} 62... Nd2 {[%clk 0:01:10.1]} 63.
Nc5 {[%clk 0:00:13.7]} 63... b2 {[%clk 0:01:10.9]} 64. Rd1 {[%clk 0:00:12.4]}
64... b1=Q {[%clk 0:01:12.8]} 65. Rxb1 {[%clk 0:00:13.4]} 65... Nxb1 {[%clk
0:01:14.7]} 0-1